bitfinex/quotes_SOLUSD_20220130
["timestamp","ask_amount","ask_price","bid_price","bid_amount"]
[1643554197130,2.95669142,94.407,94.324,6.0]
[1643554197326,2.95669142,94.407,94.326,34.88895348]
[1643554197730,2.95669142,94.407,94.327,0.25]
[1643554198429,15.905,94.4,94.29,15.904]
[1643554198627,30.975,94.4,94.29,15.904]
[1643554198828,2.95669142,94.399,94.29,15.904]
[1643554199429,2.95669142,94.399,94.315,33.56804153]
[1643554200130,108.75669142,94.399,94.315,33.56804153]
[1643554200328,0.25,94.398,94.315,33.56804153]
[1643554200529,3.20669142,94.398,94.315,33.56804153]
[1643554200728,0.25,94.398,94.315,33.56804153]
[1643554200928,15.907,94.39,94.315,33.56804153]
[1643554201330,2.95669142,94.389,94.315,33.56804153]
[1643554201830,108.75669142,94.389,94.27,30.978]
[1643554202030,108.75669142,94.389,94.27,15.908]
[1643554202240,105.8,94.379,94.24,53.031]
[1643554202430,105.8,94.379,94.21,15.7405]
[1643554202431,105.8,94.379,94.236,48.1192]
[1643554202630,19.20853878,94.378,94.246,6.0]
[1643554202832,19.20853878,94.378,94.247,42.44169752]
[1643554203031,19.2731045,94.377,94.257,6.0]
[1643554203431,125.00853878,94.376,94.258,0.25]
[1643554203832,19.2731045,94.375,94.258,23.0248]
[1643554204032,15.913,94.35,94.268,6.0]
[1643554204332,15.913,94.35,94.269,42.23283789]
[1643554204532,2.95669142,94.349,94.269,42.23283789]
[1643554204931,15.913,94.35,94.269,42.23283789]
[1643554205332,0.25,94.349,94.269,42.23283789]
[1643554205533,15.913,94.35,94.279,6.0]
[1643554205834,15.913,94.35,94.28,0.25]
[1643554206833,0.25,94.349,94.28,0.25]
[1643554207535,2.95669142,94.348,94.28,0.25]
[1643554207732,2.95669142,94.348,94.27,0.25]
[1643554207933,15.913,94.35,94.27,0.25]
[1643554208534,15.913,94.35,94.269,41.98283789]
[1643554208535,15.413,94.35,94.269,41.98283789]
[1643554208734,105.8,94.349,94.269,41.98283789]
[1643554210037,105.8,94.349,94.27,0.25]
[1643554211435,30.483,94.35,94.27,0.25]
[1643554211634,0.25,94.349,94.27,0.25]
[1643554212437,106.05,94.349,94.27,0.25]
[1643554213538,106.05,94.349,94.269,41.98283789]
[1643554213740,106.05,94.349,94.27,0.25]
[1643554214039,0.25,94.349,94.27,0.25]
[1643554214239,15.911,94.37,94.279,6.0]
[1643554214739,15.07,94.39,94.281,6.0]
[1643554214939,15.07,94.39,94.282,105.8]
[1643554215144,0.25,94.389,94.292,6.0]
[1643554215339,0.25,94.389,94.293,45.78155274]
[1643554215541,0.25,94.389,94.293,69.61925274]
[1643554215941,15.908,94.38,94.293,69.61925274]
[1643554217346,32.22441308,94.38,94.293,69.61925274]
[1643554218346,0.25,94.379,94.293,69.61925274]
[1643554219347,0.25,94.379,94.293,69.36925274]
[1643554220045,2.95669142,94.378,94.293,69.36925274]
[1643554220451,2.95669142,94.378,94.303,6.0]
[1643554221246,0.25,94.377,94.304,0.25]
[1643554221645,0.25,94.377,94.304,6.25]
[1643554221844,2.95669142,94.376,94.305,0.25]
[1643554223246,2.95669142,94.376,94.311,35.47595366]
[1643554223647,0.25,94.377,94.312,0.25]
[1643554223848,0.25,94.377,94.312,48.7672]
[1643554224047,2.95669142,94.376,94.312,48.7672]
[1643554225276,2.95669142,94.376,94.312,0.25]
[1643554225678,2.95669142,94.376,94.311,35.47595366]
[1643554226480,2.95669142,94.376,94.28,15.906]
[1643554226678,2.95669142,94.376,94.271,47.4288]
[1643554226879,19.20853878,94.376,94.271,47.4288]
[1643554227278,19.20853878,94.376,94.235,2.93877137]
[1643554227479,32.31853878,94.376,94.236,40.28685001]
[1643554227680,15.91,94.37,94.245,6.0]
[1643554227879,15.91,94.37,94.246,6.0]
[1643554227880,15.07,94.36,94.246,6.0]
[1643554228082,105.8,94.359,94.246,6.0]
[1643554228278,125.0731045,94.359,94.246,6.0]
[1643554228478,125.0731045,94.359,94.247,0.25]
[1643554228679,19.2731045,94.358,94.247,0.25]
[1643554228879,105.8,94.357,94.247,0.25]
[1643554229079,15.916,94.33,94.247,0.25]
[1643554229279,15.07,94.35,94.247,0.25]
[1643554229480,15.07,94.35,94.247,24.3561]
[1643554229680,2.95669142,94.329,94.247,24.3561]
[1643554229879,2.95669142,94.349,94.258,46.1143523]
[1643554230079,2.95669142,94.349,94.268,6.0]
[1643554230279,2.95669142,94.349,94.269,0.25]
[1643554231380,2.95669142,94.349,94.27,6.0]
[1643554231782,0.25,94.348,94.271,0.25]
[1643554231979,0.25,94.348,94.271,6.25]
[1643554232379,2.95669142,94.347,94.273,40.96797539]
[1643554232780,2.95669142,94.347,94.274,0.25]
[1643554234185,0.25,94.346,94.274,0.25]
[1643554234988,3.20669142,94.346,94.274,0.25]
[1643554235587,0.25,94.346,94.283,6.0]
[1643554235789,2.95669142,94.359,94.284,0.25]
[1643554236186,2.95669142,94.359,94.284,6.25]
[1643554237790,0.25,94.358,94.284,6.25]
[1643554239194,2.95669142,94.359,94.284,6.25]
[1643554240196,15.07,94.36,94.284,6.25]
[1643554240394,18.86669142,94.37,94.284,6.25]
[1643554240595,0.25,94.359,94.284,6.25]
[1643554240795,0.25,94.369,94.284,6.25]
[1643554241196,2.95669142,94.368,94.285,105.8]
[1643554241396,2.95669142,94.368,94.286,0.25]
[1643554241595,2.95669142,94.393,94.296,145.40997086]
[1643554241796,2.95669142,94.393,94.297,47.3806]
[1643554241996,2.95669142,94.393,94.307,6.0]
[1643554242396,2.95669142,94.393,94.308,0.25]
[1643554242998,19.20853878,94.393,94.308,0.25]
[1643554243399,2.95669142,94.392,94.308,0.25]
[1643554243605,3.20669142,94.392,94.308,0.25]
[1643554244031,15.907,94.39,94.308,0.25]
[1643554244627,2.95669142,94.389,94.308,0.25]
[1643554245227,0.25,94.388,94.308,0.25]
[1643554245627,2.95669142,94.387,94.308,0.25]
[1643554245827,0.25,94.386,94.308,0.25]
[1643554246331,2.95669142,94.385,94.308,0.25]
[1643554247131,15.908,94.38,94.307,6.0]
[1643554247330,15.908,94.38,94.212,16.0225]
[1643554247331,15.07,94.37,94.249,2.93877137]
[1643554247530,15.07,94.37,94.259,6.0]
[1643554247731,15.07,94.37,94.26,24.5347]
[1643554247931,19.2731045,94.369,94.26,24.5347]
[1643554248132,19.2731045,94.369,94.271,43.90012003]
[1643554248329,19.2731045,94.368,94.271,43.90012003]
[1643554248731,19.2731045,94.367,94.271,43.90012003]
[1643554249129,15.914,94.35,94.271,43.90012003]
[1643554249329,30.984,94.35,94.271,43.90012003]
[1643554249531,2.95669142,94.349,94.271,43.90012003]
[1643554250932,2.95669142,94.349,94.272,0.25]
[1643554251536,2.95669142,94.349,94.281,6.0]
[1643554251734,0.25,94.348,94.281,6.0]
[1643554251938,0.25,94.348,94.282,6.0]
[1643554252137,15.07,94.35,94.284,6.0]
[1643554252338,15.07,94.35,94.285,0.25]
[1643554252339,0.25,94.349,94.285,0.25]
[1643554254042,0.25,94.349,94.274,105.8]
[1643554254440,2.95669142,94.348,94.275,0.25]
[1643554254640,2.95669142,94.348,94.284,6.0]
[1643554254840,2.95669142,94.348,94.285,0.25]
[1643554255239,15.912,94.36,94.285,0.25]
[1643554255439,0.25,94.347,94.285,0.25]
[1643554255641,2.95669142,94.359,94.285,0.25]
[1643554255839,0.25,94.358,94.285,0.25]
[1643554256240,3.20669142,94.358,94.285,0.25]
[1643554256841,3.20669142,94.358,94.285,106.05]
[1643554257041,3.20669142,94.358,94.295,6.0]
[1643554257440,3.20669142,94.358,94.296,6.25]
[1643554257640,3.20669142,94.358,94.296,0.25]
[1643554258042,3.20669142,94.358,94.297,6.0]
[1643554258442,3.20669142,94.358,94.298,0.25]
[1643554258741,9.4,94.369,94.298,0.25]
[1643554259643,2.95669142,94.369,94.297,6.0]
[1643554259843,2.95669142,94.369,94.298,0.25]
[1643554260045,0.25,94.368,94.298,0.25]
[1643554260444,2.95669142,94.367,94.298,0.25]
[1643554260851,0.25,94.366,94.288,0.25]
[1643554261251,2.95669142,94.365,94.287,23.4947]
[1643554261454,2.95669142,94.365,94.229,2.93877137]
[1643554261656,2.95669142,94.365,94.179,112.9]
[1643554261657,15.07,94.36,94.242,47.4275]
[1643554261856,15.07,94.36,94.251,6.0]
[1643554262051,2.95669142,94.359,94.252,6.0]
[1643554262252,15.917,94.33,94.252,6.0]
[1643554262452,15.917,94.33,94.253,41.76535088]
[1643554262651,2.95669142,94.329,94.263,6.0]
[1643554263658,0.25,94.328,94.263,6.0]
[1643554264053,2.95669142,94.327,94.263,6.0]
[1643554266154,2.95669142,94.327,94.264,6.0]
[1643554266758,0.25,94.328,94.264,6.0]
[1643554266955,0.25,94.328,94.265,0.25]
[1643554267354,0.25,94.328,94.265,6.25]
[1643554267754,2.95669142,94.345,94.265,6.25]
[1643554268154,2.95669142,94.345,94.266,23.9784]
[1643554268356,2.95669142,94.345,94.267,0.25]
[1643554268656,16.2317,94.349,94.267,0.25]
[1643554269056,2.95669142,94.359,94.277,39.68596503]
[1643554269259,2.95669142,94.359,94.278,24.7761]
[1643554269458,0.25,94.358,94.278,25.0261]
[1643554269859,2.95669142,94.357,94.278,25.0261]
[1643554271489,2.95669142,94.357,94.288,6.0]
[1643554271891,2.95669142,94.357,94.289,0.25]
[1643554272088,2.95669142,94.357,94.289,6.25]
[1643554273089,2.95669142,94.357,94.289,0.25]
[1643554273289,2.95669142,94.357,94.28,0.25]
[1643554273490,2.95669142,94.357,94.289,6.0]
[1643554273891,2.95669142,94.357,94.29,0.25]
[1643554275092,0.25,94.356,94.29,0.25]
[1643554278899,0.25,94.356,94.28,0.25]
[1643554279503,2.95669142,94.37,94.289,6.0]
[1643554279703,2.95669142,94.37,94.29,105.8]
[1643554279900,2.95669142,94.37,94.29,106.05]
[1643554280101,2.95669142,94.37,94.301,40.21337498]
[1643554280302,2.95669142,94.37,94.302,0.25]
[1643554282908,2.95669142,94.37,94.3,6.0]
[1643554282909,15.911,94.36,94.26,15.07]
[1643554283108,15.911,94.36,94.212,77.3325]
[1643554283109,1.44818951,94.355,94.253,46.8508]
[1643554283406,27.101,94.36,94.246,1.47377466]
[1643554283407,1.44818951,94.347,94.246,1.47377466]
[1643554283606,15.07,94.35,94.241,1.47377466]
[1643554283607,1.44818951,94.342,94.241,1.47377466]
[1643554283806,199.56,94.36,94.218,2.94895088]
[1643554283807,15.07,94.33,94.24,1.47377466]
[1643554284006,15.07,94.33,94.237,37.71104023]
[1643554284007,15.919,94.32,94.241,24.0997]
[1643554284206,30.989,94.32,94.241,24.0997]
[1643554284609,30.989,94.32,94.237,37.71104023]
[1643554284610,2.95669142,94.319,94.251,6.0]
[1643554284807,19.24436037,94.319,94.247,6.0]
[1643554285105,16.30933561,94.318,94.247,6.0]
[1643554285306,19.26602703,94.318,94.247,6.0]
[1643554285507,2.95669142,94.317,94.247,6.0]
[1643554285907,2.95669142,94.317,94.237,37.71104023]
[1643554286108,15.92,94.31,94.217,24.99467466]
[1643554286308,15.07,94.3,94.209,1.47377466]
[1643554286708,0.25,94.299,94.203,1.47377466]
[1643554286910,3.20669142,94.299,94.203,1.47377466]
[1643554287111,2.95669142,94.298,94.204,37.11094398]
[1643554287308,15.924,94.29,94.204,37.11094398]
[1643554287711,2.95669142,94.289,94.205,0.25]
[1643554288711,3.20669142,94.299,94.205,0.25]
[1643554288937,0.25,94.299,94.214,6.0]
[1643554289138,0.25,94.299,94.215,6.0]
[1643554289335,0.25,94.299,94.215,0.25]
[1643554289537,2.95669142,94.298,94.215,0.25]
[1643554290335,2.95669142,94.298,94.206,0.25]
[1643554292137,2.95669142,94.298,94.215,6.0]
[1643554292340,2.95669142,94.298,94.216,0.25]
[1643554292538,15.07,94.3,94.216,0.25]
[1643554292939,2.95669142,94.299,94.205,23.7278]
[1643554293740,2.95669142,94.299,94.206,0.25]
[1643554293939,0.25,94.298,94.206,0.25]
[1643554294138,15.924,94.29,94.206,0.25]
[1643554294738,2.95669142,94.289,94.206,0.25]
[1643554295138,17.54433562,94.297,94.215,6.0]
[1643554295539,17.54433562,94.297,94.216,6.0]
[1643554295738,1.44818951,94.332,94.216,6.0]
[1643554295739,2.95669142,94.296,94.216,6.0]
[1643554295939,49.59359142,94.314,94.217,0.25]
[1643554296340,2.95669142,94.299,94.217,0.25]
[1643554297146,0.25,94.298,94.216,6.0]
[1643554297348,0.25,94.298,94.217,0.25]
[1643554297853,3.20669142,94.298,94.217,0.25]
[1643554298456,3.20669142,94.298,94.207,0.25]
[1643554299551,3.20669142,94.298,94.215,6.0]
[1643554299955,3.20669142,94.298,94.216,0.25]
[1643554301255,3.20669142,94.298,94.206,0.25]
[1643554301457,3.20669142,94.298,94.215,6.0]
[1643554301858,3.20669142,94.298,94.216,0.25]
[1643554302256,3.20669142,94.298,94.206,0.25]
[1643554303557,15.923,94.29,94.206,0.25]
[1643554303956,2.95669142,94.289,94.206,0.25]
[1643554307063,2.95669142,94.289,94.215,6.0]
[1643554307463,0.25,94.288,94.215,6.0]
[1643554307763,0.25,94.288,94.206,0.25]
[1643554307966,2.95669142,94.287,94.206,0.25]
[1643554308465,0.25,94.286,94.206,0.25]
[1643554308864,2.95669142,94.285,94.206,0.25]
[1643554311069,0.25,94.284,94.206,0.25]
[1643554311873,2.95669142,94.283,94.206,0.25]
[1643554312676,15.925,94.28,94.206,0.25]
[1643554313080,2.95669142,94.279,94.206,0.25]
[1643554313277,2.95669142,94.279,94.205,23.7278]
[1643554317293,2.95669142,94.279,94.206,0.25]
[1643554317492,2.95669142,94.279,94.206,1.72377466]
[1643554318193,15.927,94.27,94.206,1.72377466]
[1643554318793,0.25,94.278,94.206,1.72377466]
[1643554319195,2.95669142,94.277,94.207,1.47377466]
[1643554319395,2.95669142,94.277,94.208,0.25]
[1643554320401,0.2,94.549,94.208,0.25]
[1643554320402,2.95669142,94.288,94.208,0.25]
[1643554320597,1.44818951,94.314,94.219,1.47377466]
[1643554320797,1.44818951,94.321,94.226,1.47377466]
[1643554321006,2.95669142,94.329,94.238,1.47377466]
[1643554321198,2.95669142,94.329,94.241,1.47377466]
[1643554321397,2.95669142,94.329,94.242,0.25]
[1643554321599,2.95669142,94.329,94.251,6.0]
[1643554321798,2.95669142,94.329,94.252,0.25]
[1643554321996,0.25,94.328,94.251,6.0]
[1643554322197,1.69818951,94.328,94.233,1.47377466]
[1643554322398,2.95669142,94.327,94.24,0.25]
[1643554322598,1.44818951,94.324,94.24,0.25]
[1643554322800,4.40488093,94.327,94.249,6.0]
[1643554323098,0.25,94.328,94.249,6.0]
[1643554323099,15.919,94.32,94.249,6.0]
[1643554323297,15.919,94.32,94.22,15.07]
[1643554323298,15.919,94.32,94.229,1.47377466]
[1643554323501,2.95669142,94.319,94.227,1.47377466]
[1643554323898,2.95669142,94.319,94.239,42.53694114]
[1643554324099,15.921,94.31,94.223,1.47377466]
[1643554324299,30.991,94.31,94.219,1.47377466]
[1643554324499,30.991,94.31,94.192,2.93877137]
[1643554324500,2.95669142,94.309,94.217,1.47377466]
[1643554324703,2.95669142,94.309,94.224,1.47377466]
[1643554325100,2.95669142,94.309,94.225,42.93917434]
[1643554325299,2.95669142,94.309,94.225,44.662949]
[1643554325500,2.95669142,94.309,94.225,44.412949]
[1643554325804,15.923,94.3,94.225,42.93917434]
[1643554326200,3.20669142,94.299,94.225,42.93917434]
[1643554326400,13.17669142,94.299,94.225,42.93917434]
[1643554326802,2.95669142,94.298,94.225,42.93917434]
[1643554327002,15.925,94.29,94.212,1.47377466]
[1643554327301,15.925,94.29,94.213,0.25]
[1643554327502,2.95669142,94.289,94.212,1.47377466]
[1643554327702,2.95669142,94.289,94.211,1.47377466]
[1643554327902,2.95669142,94.289,94.212,38.59338838]
[1643554328503,2.95669142,94.289,94.213,23.6671]
[1643554333403,0.25,94.288,94.213,23.6671]
[1643554333803,2.95669142,94.287,94.213,23.6671]
[1643554334004,1.44818951,94.297,94.213,23.6671]
[1643554334204,2.95669142,94.307,94.219,1.47377466]
[1643554334403,2.95669142,94.307,94.22,0.25]
[1643554334804,1.44818951,94.309,94.22,0.25]
[1643554335005,1.44818951,94.317,94.23,105.8]
[1643554335204,1.44818951,94.321,94.231,49.61497466]
[1643554335404,1.44818951,94.324,94.233,1.47377466]
[1643554335605,1.44818951,94.326,94.235,1.47377466]
[1643554335805,1.44818951,94.329,94.236,0.25]
[1643554336005,1.44818951,94.329,94.233,1.47377466]
[1643554336208,2.95669142,94.326,94.234,0.25]
[1643554336406,1.44818951,94.322,94.234,0.25]
[1643554336606,1.44818951,94.321,94.234,0.25]
[1643554337406,1.44818951,94.321,94.232,0.25]
[1643554337605,0.25,94.32,94.232,0.25]
[1643554338205,1.44818951,94.322,94.232,0.25]
[1643554338406,0.25,94.321,94.232,0.25]
[1643554340208,1.44818951,94.323,94.232,0.25]
[1643554340409,2.95669142,94.326,94.232,0.25]
[1643554340410,0.25,94.322,94.232,0.25]
[1643554340808,0.25,94.324,94.232,0.25]
[1643554341909,4.40488093,94.326,94.232,0.25]
[1643554342510,2.95669142,94.326,94.232,0.25]
[1643554345615,0.25,94.325,94.232,0.25]
[1643554346415,15.919,94.32,94.232,0.25]
[1643554346813,3.20669142,94.319,94.232,0.25]
[1643554347314,2.95669142,94.318,94.232,0.25]
[1643554349214,0.25,94.317,94.232,0.25]
[1643554349615,2.95669142,94.316,94.232,0.25]
[1643554349818,13.84669142,94.316,94.232,0.25]
[1643554350216,2.95669142,94.315,94.232,0.25]
[1643554356448,0.25,94.314,94.232,0.25]
[1643554356852,0.00669142,94.313,94.232,106.05]
[1643554357051,1.44818951,94.343,94.244,105.8]
[1643554357251,213.36092674,94.409,94.244,105.8]
[1643554357252,1.44818951,94.356,94.253,1.47377466]
[1643554357550,15.07,94.38,94.263,6.0]
[1643554357551,1.44818951,94.362,94.263,6.0]
[1643554357752,15.07,94.36,94.264,24.2106]
[1643554357950,2.95669142,94.344,94.264,24.2106]
[1643554358151,15.916,94.34,94.264,24.2106]
[1643554358552,2.95669142,94.339,94.264,24.2106]
[1643554358751,3.20669142,94.339,94.264,24.2106]
[1643554359156,2.95669142,94.338,94.264,24.2106]
[1643554360456,4.40488093,94.338,94.264,24.2106]
[1643554360654,2.95669142,94.338,94.264,24.2106]
[1643554360856,1.44818951,94.336,94.264,24.2106]
[1643554361057,15.918,94.33,94.264,24.2106]
[1643554361257,15.918,94.33,94.233,1.47377466]
[1643554361458,24.7852,94.329,94.234,22.9194]
[1643554361661,27.74189142,94.329,94.234,22.9194]
[1643554361958,4.40488093,94.328,94.234,22.9194]
[1643554362159,15.919,94.32,94.234,22.9194]
[1643554362756,2.95669142,94.319,94.234,22.9194]
[1643554363760,15.921,94.31,94.234,22.9194]
[1643554363958,0.25,94.318,94.234,22.9194]
[1643554364164,2.95669142,94.309,94.234,22.9194]
[1643554365661,2.95669142,94.309,94.223,1.47377466]
[1643554366061,2.95669142,94.309,94.222,1.47377466]
[1643554366361,2.95669142,94.309,94.221,7.47377466]
[1643554366562,2.95669142,94.309,94.222,68.42654417]
[1643554366961,2.95669142,94.309,94.222,23.4666]
[1643554367162,4.40488093,94.309,94.222,23.4666]
[1643554367462,0.25,94.308,94.222,23.4666]
[1643554367663,15.922,94.3,94.222,23.4666]
[1643554367962,15.922,94.3,94.21,1.47603109]
[1643554368165,26.52359142,94.299,94.217,0.25]
[1643554368565,2.95669142,94.298,94.217,0.25]
[1643554369366,2.95669142,94.298,94.212,0.25]
[1643554369564,2.95669142,94.298,94.221,6.0]
[1643554369765,2.95669142,94.298,94.222,22.5746]
[1643554373768,0.25,94.297,94.222,22.5746]
[1643554374572,2.95669142,94.296,94.222,22.5746]
[1643554375970,15.924,94.29,94.222,22.5746]
[1643554376371,2.95669142,94.289,94.222,22.5746]
[1643554376771,2.95669142,94.289,94.223,0.25]
[1643554378576,0.25,94.288,94.223,0.25]
[1643554380478,2.95669142,94.289,94.223,0.25]
[1643554381877,0.25,94.288,94.223,0.25]
[1643554384704,2.95669142,94.287,94.222,22.5746]
[1643554388406,25.76619142,94.299,94.222,22.5746]
[1643554388607,0.25,94.298,94.233,38.6579935]
[1643554388807,1.44818951,94.309,94.234,128.6406]
[1643554389007,1.44818951,94.32,94.244,6.0]
[1643554389207,1.44818951,94.332,94.245,22.5906]
[1643554389408,1.44818951,94.332,94.245,22.8406]
[1643554389606,1.44818951,94.332,94.255,6.0]
[1643554389807,1.44818951,94.334,94.256,0.25]
[1643554390009,1.44818951,94.34,94.256,23.8]
[1643554390409,1.44818951,94.345,94.267,42.2590567]
[1643554390608,1.44818951,94.346,94.277,6.0]
[1643554390910,26.21278951,94.349,94.278,0.25]
[1643554391110,26.21278951,94.349,94.268,47.882]
[1643554391111,24.7646,94.349,94.268,47.882]
[1643554391309,24.7646,94.349,94.269,0.25]
[1643554391508,26.21278951,94.349,94.269,0.25]
[1643554391709,1.44818951,94.347,94.269,0.25]
[1643554391909,1.44818951,94.346,94.269,0.25]
[1643554392113,1.44818951,94.345,94.269,0.25]
[1643554392311,0.25,94.346,94.269,0.25]
[1643554392511,2.95669142,94.345,94.269,0.25]
[1643554392715,2.95669142,94.344,94.269,0.25]
[1643554393614,2.95669142,94.344,94.278,6.0]
[1643554393814,2.95669142,94.344,94.279,22.5087]
[1643554396318,4.40488093,94.357,94.279,22.5087]
[1643554396517,2.95669142,94.353,94.279,22.5087]
[1643554397417,0.25,94.352,94.279,22.5087]
[1643554397820,2.95669142,94.351,94.279,22.5087]
[1643554398218,15.914,94.35,94.268,23.4416]
[1643554398524,54.1055,94.35,94.268,23.4416]
[1643554398719,2.95669142,94.349,94.278,6.0]
[1643554399120,0.25,94.348,94.279,43.76602572]
[1643554399729,0.25,94.348,94.28,23.9105]
[1643554399921,2.95669142,94.349,94.28,23.9105]
[1643554400123,15.07,94.37,94.29,6.0]
[1643554400327,2.95669142,94.375,94.291,24.8862]
[1643554400521,1.44818951,94.394,94.301,6.0]
[1643554400723,1.44818951,94.397,94.302,153.4339]
[1643554400923,1.44818951,94.403,94.302,153.6839]
[1643554401124,15.07,94.42,94.312,6.0]
[1643554401125,1.44818951,94.405,94.312,6.0]
[1643554401323,1.44818951,94.407,94.313,167.35030604]
[1643554401625,1.44818951,94.408,94.323,6.0]
[1643554401822,1.44818951,94.417,94.324,23.2611]
[1643554402024,1.44818951,94.417,94.334,6.0]
[1643554402224,32.42018951,94.42,94.335,24.1694]
[1643554402523,15.07,94.42,94.335,24.4194]
[1643554403125,15.07,94.42,94.346,37.6816422]
[1643554403323,15.07,94.42,94.347,24.9784]
[1643554403526,15.07,94.42,94.357,6.0]
[1643554404325,0.25,94.419,94.357,6.0]
[1643554405532,15.07,94.42,94.357,6.0]
[1643554405728,15.07,94.42,94.358,0.25]
[1643554407927,0.25,94.419,94.358,0.25]
[1643554409131,15.07,94.44,94.358,24.5034]
[1643554409328,22.9743,94.457,94.358,24.5034]
[1643554409527,1.44818951,94.463,94.368,6.0]
[1643554409729,1.44818951,94.473,94.369,23.2167]
[1643554409929,1.44818951,94.477,94.369,46.7842]
[1643554410130,16.2278,94.478,94.379,6.0]
[1643554410329,16.2278,94.478,94.38,61.7057879]
[1643554410929,0.25,94.477,94.38,61.7057879]
[1643554411530,0.25,94.477,94.39,6.0]
[1643554411728,15.4778,94.478,94.391,22.5534]
[1643554411929,15.4778,94.478,94.391,22.8034]
[1643554413132,15.894,94.47,94.391,22.5534]
[1643554413335,105.8,94.469,94.369,23.3175]
[1643554413631,133.69969142,94.469,94.369,23.3175]
[1643554413832,2.95669142,94.468,94.369,23.3175]
[1643554414230,2.95669142,94.468,94.37,33.57446919]
[1643554414631,2.95669142,94.468,94.371,23.0394]
[1643554414831,2.95669142,94.468,94.371,22.7894]
[1643554415031,15.898,94.45,94.319,10.37]
[1643554415232,15.07,94.44,94.321,22.7894]
[1643554415631,108.75669142,94.439,94.321,22.7894]
[1643554415833,174.15381673,94.439,94.322,43.34649327]
[1643554416040,2.95669142,94.438,94.322,43.34649327]
[1643554416234,105.8,94.437,94.323,0.25]
[1643554416463,15.903,94.42,94.332,6.0]
[1643554416633,30.973,94.42,94.323,0.25]
[1643554416833,27.79809142,94.419,94.323,0.25]
[1643554417232,2.95669142,94.418,94.323,0.25]
[1643554417433,15.904,94.41,94.322,0.25]
[1643554418034,2.95669142,94.409,94.322,0.25]
[1643554418234,2.95669142,94.409,94.322,43.72541783]
[1643554419035,15.905,94.4,94.322,43.72541783]
[1643554419437,2.95669142,94.399,94.321,22.7894]
[1643554420440,2.95669142,94.399,94.322,41.92672022]
[1643554420840,15.07,94.41,94.332,6.0]
[1643554421040,15.07,94.41,94.333,28.9546]
[1643554421440,15.07,94.41,94.333,22.9546]
[1643554421842,15.07,94.41,94.334,0.25]
[1643554424967,30.974,94.41,94.334,0.25]
[1643554425866,2.95669142,94.409,94.333,22.9546]
[1643554426065,108.75669142,94.409,94.333,22.9546]
[1643554426469,2.95669142,94.408,94.333,22.9546]
[1643554427868,1.44818951,94.405,94.333,22.9546]
[1643554428268,4.40488093,94.404,94.333,22.9546]
[1643554428669,2.95669142,94.403,94.333,22.9546]
[1643554429771,1.44818951,94.402,94.307,45.67969538]
[1643554429971,2.95669142,94.403,94.307,45.67969538]
[1643554429972,1.44818951,94.395,94.308,23.0173]
[1643554430171,1.44818951,94.392,94.308,23.0173]
[1643554430572,1.44818951,94.39,94.308,23.0173]
[1643554430872,4.40488093,94.391,94.308,23.0173]
[1643554431072,2.95669142,94.389,94.308,22.7673]
[1643554431474,2.95669142,94.389,94.28,15.906]
[1643554431678,24.3234,94.388,94.305,6.0]
[1643554432076,24.3234,94.388,94.306,6.0]
[1643554432276,24.3234,94.388,94.306,46.47495496]
[1643554432576,30.977,94.39,94.307,22.7178]